bitfinex/quotes_ETHUSD_20251011
["timestamp","ask_amount","ask_price","bid_price","bid_amount"]
[1760158984028,2.60539251,3838.2,3836.9,0.3599]
[1760158984229,2.60539251,3838.2,3837.0,2.60620276]
[1760158984468,2.60556441,3838.0,3836.9,0.3599]
[1760158984757,2.60484501,3839.0,3836.9,0.3599]
[1760158984936,2.60600038,3837.3,3836.9,0.3599]
[1760158985143,2.3502,3839.1,3837.0,0.3599]
[1760158985144,0.4302,3839.1,3837.0,0.3599]
[1760158985452,2.60511644,3838.6,3836.4,0.3599]
[1760158985660,2.60498072,3838.8,3836.4,0.3599]
[1760158985661,2.60605864,3837.3,3836.4,0.3599]
[1760158986024,2.60600456,3837.3,3836.4,0.3599]
[1760158986551,0.4302,3838.5,3836.1,0.1304]
[1760158986552,0.6538,3837.8,3836.1,0.1304]
[1760158986752,0.4302,3837.7,3835.1,0.3599]
[1760158987051,2.60615269,3837.1,3835.8,2.60697479]
[1760158987234,2.60600327,3837.3,3835.9,0.3599]
[1760158987435,2.60619961,3837.1,3835.9,2.96684811]
[1760158987667,2.60579528,3837.6,3835.9,0.3599]
[1760158987872,2.60624204,3837.0,3835.9,0.3599]
[1760158988365,2.60634961,3836.8,3835.9,0.3599]
[1760158989254,2.60628283,3836.9,3835.9,0.3599]
[1760158989456,2.60634544,3836.8,3835.9,0.3599]
[1760158989647,3.01481341,3837.3,3835.9,2.96682521]
[1760158989843,0.4302,3839.1,3837.2,0.1304]
[1760158990067,0.4302,3839.1,3836.7,0.4903]
[1760158990068,2.6052738,3838.4,3836.7,0.4903]
[1760158990273,0.40872359,3838.2,3836.7,0.4903]
[1760158990440,2.60566496,3837.8,3836.2,2.0504]
[1760158990757,2.60566783,3837.8,3836.2,0.1304]
[1760158991054,2.60619861,3837.1,3837.0,0.1296]
[1760158991456,2.60619861,3837.1,3836.2,0.1304]
[1760158991457,3.04636626,3837.7,3834.5,2.60784237]
[1760158991762,2.60665874,3836.4,3836.2,0.1296]
[1760158992130,2.60662326,3836.4,3836.2,0.1296]
[1760158992477,0.40880375,3837.4,3833.3,2.60868474]
[1760158992478,2.605999,3837.3,3833.3,2.60868474]
[1760158992638,0.4406,3837.2,3834.7,0.3599]
[1760158992845,0.4406,3837.2,3835.1,2.60744196]
[1760158993041,1.92,3837.9,3835.0,0.3599]
[1760158993042,0.4406,3837.1,3835.0,0.3599]
[1760158993241,2.60655477,3836.5,3835.0,2.96745634]
[1760158993445,0.40882411,3836.7,3835.0,0.3599]
[1760158993771,2.60685982,3836.1,3835.0,0.3599]
[1760158993967,0.40882411,3836.7,3835.0,0.3599]
[1760158994646,0.40882411,3836.7,3835.0,2.9674328]
[1760158994840,2.60691282,3836.0,3835.0,0.3599]
[1760158995046,2.60697278,3835.9,3835.0,0.3599]
[1760158995243,0.4406,3836.5,3834.4,0.3599]
[1760158995737,2.60727953,3835.5,3834.4,2.2799]
[1760158995939,2.60679996,3836.2,3834.0,0.1284]
[1760158996138,2.60749393,3835.1,3835.0,0.002]
[1760158997275,3.04809393,3835.1,3835.0,0.002]
[1760158997643,2.60749393,3835.1,3835.0,0.002]
[1760158998784,3.04809393,3835.1,3835.0,0.002]
[1760158999859,3.04809393,3835.1,3833.0,0.3599]
[1760158999860,3.24116192,3835.0,3830.8,2.61036849]
[1760159000060,2.3606,3835.1,3830.0,0.1304]
[1760159000061,0.84960149,3835.1,3832.0,0.461]
[1760159000387,2.60799822,3834.4,3833.2,2.60874629]
[1760159000743,2.60799822,3834.4,3833.0,2.96879903]
[1760159001049,0.40900149,3835.1,3833.5,2.60857694]
[1760159001237,0.40900149,3835.1,3833.3,2.60871833]
[1760159001590,0.40900149,3835.1,3832.3,0.6336]
[1760159001591,1.92,3834.7,3830.9,2.61034473]
[1760159001752,0.2197,3833.4,3830.9,0.3599]
[1760159001960,0.6603,3833.4,3831.2,1.92]
[1760159002267,2.60927296,3832.5,3831.0,0.3599]
[1760159002477,0.1304,3832.6,3832.0,0.1304]
[1760159002841,2.6094241,3832.3,3832.0,0.1304]
[1760159003080,2.73960528,3832.6,3832.0,0.1304]
[1760159003081,0.571,3832.6,3832.0,0.1304]
[1760159003302,2.60953524,3832.1,3832.0,0.1304]
[1760159003452,0.571,3832.6,3830.8,0.3599]
[1760159003453,2.60966322,3832.0,3830.8,0.3599]
[1760159003660,2.60987674,3831.6,3831.4,0.1304]
[1760159003893,2.60994388,3831.5,3831.4,0.1304]
[1760159004058,2.60988462,3831.6,3831.4,0.1304]
[1760159004259,2.60994388,3831.5,3831.4,0.1304]
[1760159004782,2.60987709,3831.6,3831.4,0.1304]
[1760159004959,2.60987709,3831.6,3829.5,0.002]
[1760159004960,0.4406,3831.5,3829.5,0.3619]
[1760159005161,3.01866921,3832.3,3829.5,0.3619]
[1760159005162,0.40925711,3832.3,3829.5,0.3619]
[1760159005492,0.4406,3832.7,3830.0,0.6336]
[1760159005704,2.60932547,3832.5,3830.4,1.92]
[1760159005911,0.4406,3832.7,3830.8,2.5536]
[1760159006211,0.4406,3832.7,3831.2,2.61008581]
[1760159006620,0.4406,3832.7,3831.4,2.61000533]
[1760159006768,0.4406,3832.6,3830.0,0.3599]
[1760159006968,2.60926288,3832.5,3830.2,0.3599]
[1760159007200,2.60981289,3831.7,3830.3,1.92]
[1760159007373,2.61008846,3831.3,3829.7,2.61114137]
[1760159007572,2.61008846,3831.3,3830.0,2.61094847]
[1760159007870,2.61008846,3831.3,3829.5,0.002]
[1760159007871,2.61044738,3830.8,3829.5,0.002]
[1760159008094,0.4406,3831.3,3829.5,0.002]
[1760159008484,2.61056297,3830.6,3829.5,0.002]
[1760159008697,0.4406,3831.3,3829.5,0.002]
[1760159008698,2.6106503,3830.5,3829.5,0.002]
[1760159008899,2.61070654,3830.4,3829.5,0.002]
[1760159009227,0.4406,3830.8,3829.5,0.002]
[1760159009402,0.4406,3830.4,3829.5,0.002]
[1760159009712,2.61123877,3829.6,3829.5,0.002]
[1760159010097,3.05183877,3829.6,3829.5,0.002]
[1760159011114,3.05183877,3829.6,3826.5,0.3619]
[1760159011115,2.61178437,3828.8,3826.5,0.3619]
[1760159011504,3.05238437,3828.8,3826.5,0.3619]
[1760159012076,3.05238437,3828.8,3826.7,2.61520416]
[1760159012290,3.46202036,3828.8,3826.7,0.002]
[1760159012812,3.46202036,3828.8,3826.8,2.61308139]
[1760159013229,3.05238437,3828.8,3826.7,0.002]
[1760159013538,0.4406,3829.6,3826.7,0.002]
[1760159013738,2.83074007,3829.9,3828.6,2.61191761]
[1760159013895,2.83074007,3829.9,3828.1,2.61221151]
[1760159013896,0.4406,3829.5,3828.1,2.61221151]
[1760159014095,0.2197,3829.9,3828.6,2.61185781]
[1760159014337,4.53185258,3828.7,3828.6,0.002]
[1760159014507,0.4406,3829.4,3828.6,0.002]
[1760159014832,2.60981626,3831.7,3828.6,0.002]
[1760159014833,0.4406,3830.1,3828.6,0.002]
[1760159015143,0.4406,3830.1,3829.5,0.1304]
[1760159015144,2.61099576,3830.0,3829.5,0.1304]
[1760159015344,2.6110465,3829.9,3829.5,0.1304]
[1760159015629,0.1304,3830.1,3829.5,0.1304]
[1760159015841,0.4406,3830.0,3829.5,0.1304]
[1760159015994,2.61185258,3828.7,3828.6,0.002]
[1760159016195,2.61172275,3828.9,3828.6,0.002]
[1760159016414,3.05245258,3828.7,3828.6,0.002]
[1760159017606,2.61092456,3830.1,3828.6,0.002]
[1760159017905,2.61165981,3829.0,3828.6,0.002]
[1760159018094,2.6115352,3829.2,3828.6,0.002]
[1760159018542,0.6603,3829.6,3828.6,0.002]
[1760159018703,2.61147812,3829.3,3828.6,0.002]
[1760159018901,2.61130695,3829.5,3828.6,0.002]
[1760159019237,2.61185258,3828.7,3828.6,0.002]
[1760159019607,3.05245258,3828.7,3828.6,0.002]
[1760159020227,2.61163465,3829.1,3828.6,0.002]
[1760159020534,3.05245258,3828.7,3828.6,0.002]
[1760159021543,2.61185258,3828.7,3828.6,0.002]
[1760159021903,0.2197,3829.6,3828.6,0.002]
[1760159022116,3.06185258,3828.7,3828.6,0.002]
[1760159022511,2.61185258,3828.7,3828.6,0.002]
[1760159022851,2.61036677,3830.9,3828.6,0.002]
[1760159022998,0.2196,3829.8,3828.6,0.002]
[1760159023397,1.92,3829.7,3828.6,0.002]
[1760159023627,2.61103423,3829.9,3828.6,0.002]
[1760159023927,2.61130393,3829.6,3828.6,0.002]
[1760159024302,2.61076155,3830.3,3828.6,0.002]
[1760159024631,0.6696,3829.6,3828.6,0.002]
[1760159025028,2.61150347,3829.3,3828.6,0.002]
[1760159025224,1.92,3830.2,3828.6,0.002]
[1760159025525,2.61151797,3829.2,3828.6,0.002]
[1760159025850,0.1304,3829.7,3829.0,0.1304]
[1760159026017,2.61157974,3829.1,3829.0,0.1304]
[1760159026342,2.61164794,3829.0,3828.6,0.1324]
[1760159026499,0.45,3829.1,3828.6,0.1324]
[1760159026702,0.1304,3829.2,3828.6,0.1324]
[1760159027337,0.45,3830.6,3828.6,0.002]
[1760159027642,2.61108422,3829.9,3828.6,0.002]
[1760159027844,2.61108422,3829.9,3828.8,2.6117276]
[1760159027998,0.45,3830.6,3828.7,2.61185258]
[1760159028242,1.92,3830.9,3828.7,2.61185258]
[1760159028243,0.45,3831.3,3828.8,0.6336]
[1760159028446,0.45,3831.3,3829.0,2.61164794]
[1760159028641,0.2197,3831.9,3828.9,0.3639]
[1760159028642,2.610012,3831.4,3829.7,2.61116942]
[1760159028859,3.05999663,3831.5,3829.7,2.61116942]
[1760159028860,0.45,3831.5,3829.7,2.61116942]
[1760159029085,0.45,3831.5,3829.6,2.61123877]
[1760159029384,0.45,3831.5,3829.5,0.3639]
[1760159029587,2.61060618,3830.6,3829.6,2.61123877]
[1760159029760,3.05995345,3831.5,3829.8,2.61109501]
[1760159029962,0.4492,3831.4,3828.3,0.002]
[1760159030162,2.61151193,3829.2,3828.3,0.002]
[1760159030373,2.61149899,3829.3,3828.3,0.002]
[1760159030573,2.61185258,3828.7,3828.3,0.002]
[1760159031381,3.06105258,3828.7,3828.3,0.002]
[1760159031580,2.61185258,3828.7,3828.3,0.002]
[1760159032298,2.61174231,3828.9,3828.3,0.002]
[1760159032673,2.6029,3829.8,3828.3,0.002]
[1760159032871,2.61185258,3828.7,3828.3,0.002]
[1760159033072,2.61178998,3828.8,3828.3,0.002]
[1760159033271,2.61185036,3828.8,3828.3,0.002]
[1760159033505,2.61185258,3828.7,3828.3,0.002]
[1760159033707,2.60493101,3828.7,3828.3,0.002]
[1760159034004,3.05413101,3828.7,3828.3,0.002]
[1760159034419,2.60493101,3828.7,3828.3,0.002]
[1760159034921,2.61285258,3828.7,3828.3,0.002]
[1760159035092,0.001,3828.7,3828.3,0.002]
[1760159035816,0.4492,3831.3,3829.0,2.61160715]
[1760159036034,0.001,3829.5,3829.1,2.97443701]
[1760159036328,0.001,3829.5,3829.4,2.61137515]
[1760159036526,0.001,3829.5,3828.6,0.002]
[1760159036709,0.001,3829.5,3829.2,2.61151075]
[1760159036922,0.001,3829.5,3829.4,2.61137515]
[1760159037225,0.001,3829.5,3829.4,2.74177515]
[1760159037616,0.001,3829.5,3829.4,3.10467515]
[1760159038413,0.001,3829.5,3829.4,0.4933]
[1760159039034,0.001,3829.5,3829.4,3.10467515]
[1760159039930,0.001,3829.5,3829.4,0.1304]
[1760159040435,0.001,3829.5,3829.4,2.74177515]
[1760159040612,0.001,3829.5,3829.4,3.10467515]
[1760159040812,0.001,3829.5,3829.4,0.1304]
[1760159041012,0.001,3829.5,3829.4,3.10467515]
[1760159041226,0.001,3829.5,3829.4,0.4933]
[1760159041533,0.001,3829.5,3829.4,0.1304]
[1760159042498,2.61230695,3829.5,3829.4,0.1304]
[1760159042728,3.06150695,3829.5,3829.4,0.1304]
[1760159043001,0.4502,3829.5,3828.6,0.002]
[1760159043206,2.61185258,3828.7,3828.6,0.002]
[1760159043604,2.99145258,3828.7,3828.6,0.002]
[1760159044614,2.54225258,3828.7,3828.6,0.002]
[1760159045004,2.99145258,3828.7,3828.6,0.002]
[1760159045410,0.1304,3828.7,3828.6,0.002]
[1760159045615,0.1304,3829.1,3828.6,0.002]
[1760159045830,2.61185258,3828.7,3828.6,0.002]
[1760159046036,2.61179557,3828.8,3828.6,0.002]
[1760159046214,0.1304,3829.1,3828.6,0.002]
[1760159046417,2.61137515,3829.4,3828.6,0.002]
[1760159046613,0.001,3829.5,3828.6,0.002]
[1760159047028,2.61159036,3829.1,3828.6,0.002]
[1760159047229,0.4502,3829.5,3828.6,0.3649]
[1760159047230,0.001,3829.5,3828.6,0.3649]
[1760159047421,2.61185258,3828.7,3828.6,0.002]
[1760159047618,0.001,3829.5,3828.6,0.002]
[1760159047619,0.4492,3829.4,3828.6,0.002]
[1760159047834,2.61231996,3829.5,3828.6,0.002]
[1760159047835,2.61163989,3829.1,3828.6,0.002]
[1760159048158,2.61166684,3829.0,3828.6,0.002]
[1760159048653,2.6115841,3829.1,3828.6,0.002]
[1760159049017,1.92,3829.4,3828.6,0.002]
[1760159049348,0.001,3829.5,3828.6,0.002]
[1760159049550,0.001,3829.5,3829.0,2.61159306]
[1760159049722,0.001,3829.5,3829.1,2.97446151]
[1760159049925,0.001,3829.5,3829.1,0.3629]
[1760159050354,0.001,3829.5,3829.2,2.97440504]
[1760159050650,0.001,3829.5,3829.2,0.3629]
[1760159050817,0.001,3829.5,3829.3,0.3629]
[1760159051020,0.001,3829.5,3829.4,2.61137515]
[1760159051322,0.001,3829.5,3829.4,2.97427515]
[1760159051847,0.001,3829.5,3829.2,2.61150119]
[1760159052422,0.001,3829.5,3828.7,4.53183026]
[1760159052623,0.001,3829.5,3828.6,0.3649]
[1760159052854,0.001,3829.5,3828.6,2.97676141]
[1760159053053,2.61231311,3829.5,3828.6,2.97676141]
[1760159053278,0.001,3829.5,3828.7,2.61183786]
[1760159053446,0.001,3829.5,3828.6,0.002]
[1760159053756,2.61185258,3828.7,3828.6,0.002]
[1760159053925,2.61170893,3829.0,3828.6,0.002]
[1760159054126,0.001,3829.5,3828.6,0.3649]
[1760159054654,2.61230813,3829.5,3828.6,0.002]
[1760159054876,0.001,3829.5,3829.0,2.6115953]
[1760159055078,0.001,3829.5,3829.2,0.6336]
[1760159055254,0.001,3829.5,3829.3,0.3629]
[1760159056139,0.001,3829.5,3828.7,0.3629]
[1760159056356,0.001,3829.5,3829.1,2.61151489]
[1760159056577,2.61231735,3829.5,3828.7,0.3629]
[1760159056779,2.61230695,3829.5,3829.4,0.1304]
[1760159057684,2.61230695,3829.5,3829.0,0.1304]
[1760159057685,0.001,3829.5,3829.0,0.1304]
[1760159057978,2.61153151,3829.2,3828.6,0.002]
[1760159058151,0.001,3829.5,3828.6,0.002]
[1760159058473,2.61157974,3829.1,3829.0,0.1304]
[1760159058772,2.61157974,3829.1,3828.6,0.002]
[1760159058773,2.61161263,3829.1,3828.6,0.002]
[1760159058975,2.61166417,3829.0,3828.6,0.002]
[1760159059479,0.001,3829.5,3828.6,0.002]
[1760159059480,2.61185258,3828.7,3828.6,0.002]
[1760159059851,2.61185258,3828.7,3828.6,0.1324]
[1760159060853,3.07675258,3828.7,3828.6,0.002]
[1760159061850,2.61185258,3828.7,3828.6,0.002]
[1760159062258,3.07675258,3828.7,3828.6,0.002]
[1760159062580,4.99675258,3828.7,3828.6,0.002]
[1760159063148,5.63035258,3828.7,3828.6,0.002]
[1760159063348,2.61212548,3828.3,3828.2,0.002]
[1760159063555,4.53212548,3828.3,3828.2,0.002]
[1760159063755,4.99702548,3828.3,3828.2,0.002]
[1760159065681,4.53212548,3828.3,3828.2,0.002]
[1760159066879,4.99702548,3828.3,3828.2,0.002]
[1760159068252,4.53239844,3827.9,3827.1,0.002]
[1760159068455,0.6336,3828.4,3827.1,0.002]
[1760159068656,2.61239844,3827.9,3827.1,0.002]
[1760159071779,3.24599844,3827.9,3827.4,0.002]
[1760159072798,4.53267145,3827.5,3827.4,1e-08]
[1760159073096,2.61267145,3827.5,3827.4,1e-08]
[1760159074797,2.61220341,3828.2,3827.4,0.13040001]
[1760159074798,2.6124554,3827.9,3827.4,0.13040001]
[1760159074979,2.61260666,3827.6,3827.4,0.57090001]
[1760159075491,2.61267145,3827.5,3827.4,0.13040001]
[1760159075679,2.61267145,3827.5,3827.4,1e-08]
[1760159077102,1.92,3828.0,3827.4,0.57090001]
[1760159077308,2.61239844,3827.9,3827.4,0.57090001]
[1760159077609,1.92,3828.0,3827.4,0.13040001]
[1760159077610,2.61252221,3827.8,3827.4,0.13040001]
[1760159077804,2.61240962,3827.9,3827.4,1e-08]
[1760159078176,1.92,3828.3,3827.4,0.44050001]
[1760159078504,2.61265792,3827.6,3827.4,0.44050001]
[1760159078878,2.61244397,3827.9,3827.4,1e-08]
[1760159079093,2.61247321,3827.8,3827.4,1e-08]
[1760159079292,2.61262942,3827.6,3827.4,1e-08]
[1760159080091,2.61262942,3827.6,3827.4,0.44050001]
[1760159080300,4.53211938,3828.4,3827.4,0.44050001]
[1760159080498,4.53211938,3828.4,3827.4,1e-08]
[1760159080712,4.53211938,3828.4,3827.5,0.4405]
[1760159080909,2.61254779,3827.7,3827.5,0.4405]
[1760159081095,2.61246625,3827.9,3827.4,1e-08]
[1760159081292,2.61246625,3827.9,3827.6,0.473]
[1760159081498,2.61248126,3827.8,3827.6,0.473]
[1760159081809,1.92,3828.5,3827.4,1e-08]
[1760159082008,2.61232261,3828.1,3827.7,0.473]
[1760159082320,2.61232261,3828.1,3827.8,0.473]
[1760159082493,0.001,3828.7,3827.8,0.473]
[1760159082494,2.61234623,3828.0,3827.8,0.473]
[1760159082690,2.61227972,3828.1,3827.9,0.473]
[1760159082897,2.61234739,3828.0,3827.4,1e-08]
[1760159083503,2.6122629,3828.1,3827.5,0.473]
[1760159083703,0.001,3828.7,3827.5,0.473]
[1760159084090,2.61245909,3827.9,3827.5,0.473]
[1760159084308,2.61198902,3828.5,3827.6,0.473]
[1760159084509,2.6125387,3827.7,3827.6,0.473]
[1760159084718,2.61263393,3827.6,3827.4,1e-08]
[1760159084924,2.61198902,3828.5,3827.5,0.473]
[1760159085098,2.61205725,3828.4,3827.5,0.473]
[1760159085298,1.92,3828.5,3827.4,1e-08]
[1760159085600,2.61267145,3827.5,3827.4,1e-08]
[1760159085923,2.61262204,3827.6,3827.4,1e-08]
[1760159086124,2.61262204,3827.6,3827.4,0.47300001]
[1760159086326,2.61262204,3827.6,3827.5,0.473]
[1760159086716,2.61239578,3828.0,3827.5,0.473]
[1760159086929,0.001,3828.7,3827.6,0.473]
[1760159087101,2.61218024,3828.3,3827.6,0.473]
[1760159087300,2.6119208,3828.6,3827.6,3.08559184]
[1760159087301,2.61211204,3828.4,3827.6,3.08559184]
[1760159087495,2.6119997,3828.5,3827.7,0.473]
[1760159087719,2.6121415,3828.3,3827.7,0.473]
[1760159087997,2.6121415,3828.3,3828.1,0.1304]
[1760159088329,2.61219372,3828.2,3828.1,0.1304]
[1760159088627,2.61206329,3828.4,3828.1,0.1304]
[1760159088628,0.001,3828.7,3828.1,0.6945]
[1760159089029,0.473,3833.3,3829.0,2.61164794]
[1760159089030,0.001,3829.9,3829.0,2.61164794]
[1760159089255,0.001,3829.9,3829.1,2.61155421]
[1760159089410,0.001,3829.9,3828.4,0.473]
[1760159089731,0.001,3829.9,3828.1,2.1415]
[1760159089732,2.61205728,3829.9,3828.9,3.08471313]
[1760159089933,0.001,3829.9,3828.9,0.473]
[1760159090138,0.001,3829.9,3829.2,2.61148498]
[1760159090345,0.001,3829.9,3829.3,2.61138796]
[1760159090632,0.001,3829.9,3829.1,0.4448]
[1760159090996,0.001,3829.9,3829.2,0.4448]
[1760159091201,0.2264,3829.9,3828.3,0.4448]
[1760159091429,2.61117891,3829.7,3828.3,0.4448]
[1760159091718,0.2264,3829.9,3828.3,0.4448]
[1760159092033,0.2264,3829.9,3828.3,3.05692532]
[1760159092034,2.61130056,3829.6,3828.3,3.05692532]
[1760159092234,0.2254,3829.7,3827.9,0.4448]
[1760159092530,2.61191221,3828.7,3827.9,0.4448]
[1760159092732,1.921,3829.5,3827.9,0.4448]
[1760159092911,2.6118548,3828.7,3828.2,0.4448]
[1760159093114,1.921,3829.5,3828.2,0.4448]
[1760159093321,2.61190346,3828.7,3828.2,0.4448]
[1760159093518,2.61144334,3829.3,3828.3,0.4448]
[1760159093734,1.921,3829.5,3827.7,1.92]
[1760159093939,1.921,3829.5,3827.7,0.4448]
[1760159094134,2.61196706,3828.6,3827.7,3.05732242]
[1760159094337,1.921,3829.5,3827.8,0.4448]
[1760159094338,2.61150044,3829.3,3827.8,0.4448]
[1760159094539,2.61198734,3828.6,3827.8,0.4448]
[1760159094739,1.92,3829.3,3827.8,0.4448]
[1760159095043,2.61212554,3828.3,3827.8,0.4448]
[1760159095243,1.92,3829.3,3827.8,0.4448]
[1760159095450,2.61218501,3828.3,3827.4,4.53273677]
[1760159095734,1.92,3829.1,3827.4,1e-08]
[1760159095735,1.92,3829.0,3827.4,1e-08]
[1760159095912,0.6336,3829.3,3827.4,1e-08]
[1760159095913,0.6336,3828.9,3827.4,1e-08]
[1760159096117,1.92,3828.7,3827.4,1e-08]
[1760159096338,2.61258003,3827.7,3827.4,1e-08]
[1760159096638,2.61253506,3827.7,3827.4,1e-08]
[1760159097919,1.92,3828.4,3827.4,1e-08]
[1760159098216,2.61267145,3827.5,3827.4,1e-08]
[1760159098728,2.61267145,3827.5,3827.4,0.13040001]
[1760159098934,0.1304,3828.2,3827.4,0.13040001]
[1760159099116,2.61249046,3827.8,3827.4,0.13040001]
[1760159099316,2.61259729,3827.7,3827.4,0.57520001]
[1760159099661,2.61237323,3828.0,3827.4,1e-08]
[1760159099815,0.1304,3828.2,3827.6,0.1304]
[1760159100021,2.61232351,3828.1,3827.9,0.1304]
[1760159100216,2.61172655,3828.9,3827.4,1e-08]
[1760159100217,0.001,3829.5,3828.0,0.4448]
[1760159100420,0.001,3829.5,3827.4,1e-08]
[1760159100421,2.61203995,3828.5,3827.6,3.05733608]
[1760159100626,2.61196998,3828.6,3828.5,0.1304]
[1760159100838,0.1304,3829.2,3828.5,0.1304]
[1760159101053,0.001,3829.5,3828.6,0.4448]
[1760159101216,0.001,3829.5,3828.1,0.2256]
[1760159101548,0.001,3829.5,3827.4,1e-08]
[1760159101549,2.61192833,3828.6,3827.8,2.61246667]
[1760159101745,0.001,3829.5,3828.7,2.61179465]
[1760159101950,0.001,3829.5,3828.7,2.61179155]
[1760159102149,2.61232364,3829.5,3828.8,0.4448]
[1760159102349,0.001,3829.5,3828.8,0.4448]
[1760159102554,0.001,3829.5,3828.2,2.3648]
[1760159102718,2.61137515,3829.4,3828.3,3.05692548]
[1760159102920,2.61231348,3829.5,3828.6,2.61186034]
[1760159103122,2.61138524,3829.4,3828.6,2.61186034]
[1760159103322,0.001,3829.5,3828.7,0.4448]
[1760159103517,2.61139568,3829.4,3828.7,0.4448]
[1760159103724,0.001,3829.5,3828.1,0.4448]
[1760159103922,2.61137515,3829.4,3828.1,0.4448]
[1760159104122,0.001,3829.5,3828.1,0.4448]
[1760159104123,2.61144334,3829.3,3828.1,0.4448]
[1760159104342,2.6119796,3828.6,3828.1,0.4448]
[1760159104547,2.61185727,3828.7,3828.2,0.4448]
[1760159104753,2.61144334,3829.3,3827.1,0.002]
[1760159104754,0.6336,3829.1,3827.1,0.002]
[1760159105055,0.6346,3829.5,3827.3,0.4448]
[1760159105259,0.6336,3829.0,3827.1,0.002]
[1760159105468,2.6126079,3827.6,3827.1,0.002]
[1760159105633,2.61267145,3827.5,3827.1,0.002]
[1760159106027,1.92,3828.8,3827.1,0.002]
[1760159106250,2.61267145,3827.5,3827.1,0.002]
[1760159107237,2.61234187,3828.0,3827.1,0.002]
[1760159107553,2.61267145,3827.5,3827.1,0.002]
[1760159108542,0.001,3830.3,3827.4,0.44480001]
[1760159108742,0.001,3830.3,3827.6,0.6336]
[1760159108743,0.40972901,3830.2,3827.6,0.6336]
[1760159108943,2.61145618,3829.3,3828.2,2.6121335]
[1760159109252,2.61171878,3828.9,3828.2,0.4448]
[1760159109435,0.2254,3829.7,3828.2,0.4448]
[1760159109639,4.53144334,3829.3,3827.7,0.4448]
[1760159109840,2.61130418,3829.6,3828.1,2.6122571]
[1760159110039,0.2254,3829.7,3827.7,0.4448]
[1760159110235,2.61165193,3829.0,3828.2,2.61219251]
[1760159110539,2.61163374,3829.1,3828.2,3.05697795]
[1760159110738,2.61186619,3828.7,3828.2,0.4448]
[1760159110939,2.61192424,3828.6,3827.7,2.61247293]
[1760159111139,2.61192424,3828.6,3827.8,0.4559]
[1760159111442,2.61201427,3828.5,3827.8,0.4559]
[1760159111745,2.61171615,3828.9,3828.8,0.1304]
[1760159111958,2.6118144,3828.8,3828.4,0.1304]
[1760159112266,0.001,3829.5,3828.5,0.4559]
[1760159112463,2.61137515,3829.4,3828.7,0.1304]
[1760159112662,2.61137515,3829.4,3828.6,2.61191519]
[1760159112957,0.001,3829.5,3828.1,0.2286]
[1760159112958,0.001,3829.5,3829.3,0.1304]
[1760159113456,0.001,3829.5,3828.1,0.2286]
[1760159113457,2.61144334,3829.3,3828.1,0.6845]
[1760159113645,2.61144334,3829.3,3828.3,2.61212548]
[1760159114041,0.001,3829.5,3828.4,0.4559]
[1760159114240,2.61162585,3829.1,3828.4,0.4559]
[1760159114473,2.6116301,3829.1,3828.4,0.4559]
[1760159114878,0.001,3829.5,3828.4,0.4559]
[1760159115256,2.61163658,3829.1,3828.4,0.4559]
[1760159115451,0.1015,3829.3,3827.6,0.4559]
[1760159115657,2.61202284,3828.5,3827.6,3.06844833]
[1760159115986,0.001,3829.5,3827.7,0.4559]
[1760159116162,0.001,3829.5,3827.8,0.6336]
[1760159116366,0.001,3829.5,3829.4,2.61137515]
[1760159116674,0.001,3829.5,3828.4,0.6336]
[1760159116675,0.001,3829.5,3829.3,2.84003322]
[1760159116871,0.001,3829.5,3829.4,2.61137515]
[1760159117070,0.001,3829.5,3829.4,3.06727515]
[1760159117284,0.001,3829.5,3829.4,3.70087515]
[1760159117586,0.001,3829.5,3829.4,5.62087515]
[1760159122523,1e-08,3830.3,3830.2,5.16442972]
[1760159122683,2.60898721,3833.0,3830.8,0.6336]
[1760159122887,2.60882408,3833.2,3830.9,0.4559]
[1760159123109,2.60893884,3833.0,3832.0,2.6095398]
[1760159123381,0.1304,3833.3,3832.6,0.1304]
[1760159123610,2.60881038,3833.2,3832.6,0.1304]
[1760159123803,2.60892563,3833.0,3832.6,0.1304]
[1760159124001,2.60884253,3833.2,3832.6,0.1304]
[1760159124311,2.60866669,3833.4,3831.4,2.61000367]
[1760159124312,2.60940092,3832.3,3831.4,0.4559]
[1760159124511,0.1002,3833.1,3831.4,0.4559]
[1760159124709,2.6094636,3832.3,3831.4,0.4559]
[1760159125022,2.60925908,3832.6,3831.6,2.60983077]
[1760159125201,2.60925908,3832.6,3831.7,2.60979696]
[1760159125403,2.60912798,3832.7,3831.7,2.60980062]
[1760159125608,2.60912798,3832.7,3831.8,3.06563657]
[1760159125793,2.0202,3833.5,3831.8,0.4559]
[1760159125998,2.6092663,3832.5,3831.8,0.4559]
[1760159126514,2.60940902,3832.3,3831.2,2.61013914]
[1760159126727,2.60946714,3832.2,3831.2,2.61013914]
[1760159126923,0.1002,3832.4,3831.1,0.4559]
[1760159127302,2.60961649,3832.0,3831.1,0.4559]
[1760159127497,2.60954305,3832.1,3831.1,0.4559]
[1760159127725,1.92,3832.8,3831.3,2.61002252]
[1760159127889,1.92,3832.5,3831.6,2.60981968]
[1760159128230,4.52919554,3832.6,3831.7,3.06570114]
[1760159128720,2.6089978,3832.9,3831.7,3.06570114]
[1760159128721,2.60933142,3832.4,3831.7,0.4559]
[1760159128921,1.92,3832.8,3831.7,0.4559]
[1760159129225,4.5292724,3832.5,3831.7,0.4559]
[1760159129386,2.60926288,3832.5,3831.7,0.4559]
[1760159129589,2.60921709,3832.6,3831.7,0.4559]
[1760159129816,1.92,3832.9,3831.7,0.4559]
[1760159130027,2.0202,3833.1,3831.7,3.06569849]
[1760159130250,2.0202,3833.1,3831.7,0.4559]